bitfinex/quotes_SOLUSD_20250204
["timestamp","ask_amount","ask_price","bid_price","bid_amount"]
[1738662608103,1.5656,205.89,205.78,104.66282853]
[1738662608309,1.5656,205.89,205.82,4.8586]
[1738662608510,6.3544,205.92,205.82,95.8586]
[1738662608709,6.3544,205.92,205.83,0.12549]
[1738662609328,6.3544,205.92,205.85,20.0]
[1738662609527,6.3544,205.92,205.83,0.12549]
[1738662609528,22.73513711,205.91,205.82,91.0]
[1738662609941,22.73513711,205.89,205.74,99.10463738]
[1738662610251,22.73513711,205.87,205.74,104.1509]
[1738662610419,22.73513711,205.89,205.78,20.0]
[1738662611147,22.73513711,205.91,205.79,0.12549]
[1738662611450,11.2108,205.92,205.82,20.0]
[1738662611738,22.73513711,205.91,205.82,20.0]
[1738662612349,22.73513711,205.91,205.82,24.8585]
[1738662612507,6.3544,205.92,205.83,20.0]
[1738662612850,6.4924,205.97,205.86,20.0]
[1738662613150,1.5834,206.0,205.9,20.0]
[1738662613322,0.03,206.0,205.9,21.72823743]
[1738662613739,0.03,206.0,205.91,0.12549]
[1738662613953,0.03,206.0,205.94,20.0]
[1738662615448,0.03,206.0,205.94,24.8556]
[1738662615755,0.03,206.0,205.94,5.5837065]
[1738662616746,0.03,206.0,205.94,0.12549]
[1738662617347,0.03,206.0,205.94,9.62549]
[1738662617740,0.03,206.0,205.98,24.98029]
[1738662617924,0.03,206.0,205.98,35.2082791]
[1738662618122,0.03,206.0,205.99,13.66282853]
[1738662618433,0.0001,206.0,205.99,104.66282853]
[1738662619838,0.0001,206.0,205.99,109.51742853]
[1738662620445,0.0001,206.0,205.99,110.51742853]
[1738662622160,0.0001,206.0,205.99,140.51742853]
[1738662622470,0.0001,206.0,205.99,110.51742853]
[1738662622641,0.0001,206.0,205.99,109.51742853]
[1738662622965,0.0001,206.0,205.99,110.51742853]
[1738662623175,0.0001,206.05,206.04,33.66282853]
[1738662623469,0.0001,206.05,206.04,115.97889]
[1738662623842,0.0001,206.05,206.04,115.8534]
[1738662624774,0.0001,206.05,206.04,115.97889]
[1738662625137,0.0001,206.05,206.04,129.51622853]
[1738662626443,0.063,206.15,206.09,0.25098]
[1738662626671,0.063,206.15,206.13,4.8513]
[1738662627948,0.063,206.15,206.13,24.8513]
[1738662628143,0.063,206.15,206.1,0.72749809]
[1738662628482,0.063,206.15,206.11,4.8516]
[1738662628646,36.69857119,206.14,206.09,9.5]
[1738662629075,8.297,206.15,206.09,9.5]
[1738662629279,36.69857119,206.12,206.06,9.5]
[1738662629576,36.69857119,206.1,206.04,9.5]
[1738662629787,36.69857119,206.06,205.97,91.0]
[1738662630080,36.94955119,206.1,205.97,91.0]
[1738662630081,36.69857119,206.04,205.97,91.0]
[1738662630450,4.8533,206.05,205.97,95.855]
[1738662630644,8.297,206.15,206.0,20.0]
[1738662630868,36.69857119,206.09,206.0,9.5]
[1738662631873,36.69857119,206.11,206.0,9.5]
[1738662632244,44.99557119,206.15,206.03,20.0]
[1738662632546,36.69857119,206.13,206.04,4.8534]
[1738662632745,36.69857119,206.11,206.03,29.5]
[1738662633150,36.69857119,206.09,206.03,9.5]
[1738662633354,36.69857119,206.07,206.03,9.5]
[1738662633570,36.69857119,206.09,206.03,9.5]
[1738662633771,36.69857119,206.11,206.03,9.5]
[1738662634483,4.852,206.1,206.03,9.5]
[1738662635087,8.297,206.15,206.03,95.8536]
[1738662635588,49.84637119,206.15,206.03,95.8536]
[1738662635965,8.297,206.15,206.03,95.8536]
[1738662636171,8.297,206.15,206.06,20.0]
[1738662636587,8.297,206.15,206.07,4.8527]
[1738662637299,13.1478,206.15,206.07,4.8527]
[1738662637464,36.76157119,206.13,206.03,91.03]
[1738662637812,36.69857119,206.07,206.03,0.03]
[1738662637963,36.69857119,206.05,206.03,0.03]
[1738662638467,0.25098,206.03,205.95,9.5]
[1738662638665,22.60581101,205.98,205.95,9.5]
[1738662638864,22.60581101,205.98,205.94,9.53]
[1738662639175,35.52591101,206.04,205.94,9.53]
[1738662639374,22.60581101,206.02,205.94,9.53]
[1738662640691,36.72122612,206.02,205.94,9.53]
[1738662641388,41.57482612,206.03,205.94,9.53]
[1738662641579,41.57482612,206.03,205.94,14.3857]
[1738662641779,36.72122612,206.02,205.94,14.3857]
[1738662641990,36.72122612,205.98,205.94,9.53]
[1738662642186,36.72122612,205.96,205.94,0.03]
[1738662642489,50.38405465,205.95,205.94,0.03]
[1738662642685,58.43995465,205.95,205.94,0.03]
[1738662642992,63.29545465,205.95,205.94,0.03]
[1738662643164,13.41184853,205.91,205.83,9.5]
[1738662643364,36.72122612,205.9,205.83,9.5]
[1738662643773,56.72122612,205.92,205.83,14.3582]
[1738662643970,36.72122612,205.9,205.83,9.5]
[1738662644188,36.72122612,205.85,205.83,9.5]
[1738662644783,4.8581,205.84,205.83,9.5]
[1738662644983,36.72122612,205.84,205.83,9.5]
[1738662645292,36.72122612,205.87,205.83,9.5]
[1738662645491,4.8567,205.9,205.83,9.5]
[1738662645678,4.8564,205.92,205.83,14.3583]
[1738662646393,20.0,205.9,205.83,9.5]
[1738662646572,54.98897465,205.94,205.83,14.3583]
[1738662646768,8.0559,205.95,205.84,0.12549]
[1738662646982,8.0559,205.95,205.85,0.12549]
[1738662647204,6.6399,206.0,205.88,20.12549]
[1738662647394,1.5885,206.01,205.92,20.0]
[1738662647690,4.8536,206.04,205.93,0.12549]
[1738662647892,6.6399,206.05,205.94,0.12549]
[1738662648083,11.4931,206.05,205.94,0.12549]
[1738662648284,38.30972612,206.08,205.97,20.0]
[1738662648489,6.441,206.08,205.97,20.0]
[1738662648991,6.441,206.08,205.98,4.8548]
[1738662649294,43.16222612,206.08,205.98,9.5]
[1738662650680,43.16222612,206.08,205.98,14.3547]
[1738662651279,6.441,206.08,205.98,14.3547]
[1738662651997,48.21322612,206.1,205.99,0.12549]
[1738662652403,48.21322612,206.1,205.98,95.8547]
[1738662652698,13.41184853,206.09,205.98,95.8547]
[1738662652873,36.72122612,206.08,205.98,91.0]
[1738662653073,36.72122612,206.06,205.98,91.0]
[1738662654007,56.13518912,206.08,205.98,91.0]
[1738662654186,48.21322612,206.1,205.98,91.0]
[1738662655405,41.57362612,206.08,205.98,91.0]
[1738662655708,41.57362612,206.08,205.98,95.8548]
[1738662656276,41.57362612,206.08,205.98,91.0]
[1738662656476,41.57362612,206.08,205.98,95.8547]
[1738662656477,4.8524,206.08,205.98,95.8547]
[1738662657399,4.8522,206.09,205.99,0.12549]
[1738662658110,36.72122612,206.08,205.98,91.0]
[1738662658303,36.72122612,206.06,205.98,91.0]
[1738662659795,50.13307465,206.04,205.98,9.5]
[1738662660001,36.72122612,206.02,205.98,9.5]
[1738662660406,36.72122612,206.0,205.98,9.5]
[1738662660607,13.66282853,205.99,205.91,9.5]
[1738662660796,36.72122612,205.93,205.91,9.5]
[1738662661118,36.72122612,205.93,205.88,9.53]
[1738662661314,36.72122612,205.89,205.88,9.53]
[1738662661523,50.13307465,205.89,205.88,0.03]
[1738662661812,56.72122612,205.91,205.88,0.03]
[1738662662012,36.72122612,205.9,205.88,0.03]
[1738662662429,20.0,205.91,205.88,0.03]
[1738662662710,36.72122612,205.9,205.88,0.03]
[1738662663612,4.8569,205.89,205.88,0.03]
[1738662663922,13.41184853,205.89,205.88,0.03]
[1738662664221,15.29122853,205.89,205.88,0.03]
[1738662664416,15.04024853,205.89,205.88,0.03]
[1738662666105,13.41184853,205.89,205.88,0.03]
[1738662667051,13.53733853,205.89,205.88,0.03]
[1738662667208,13.66282853,205.89,205.88,0.03]
[1738662667410,20.25098,205.83,205.82,0.03]
[1738662667714,0.25098,205.77,205.73,0.03]
[1738662667926,36.72122612,205.74,205.73,0.03]
[1738662668434,4.859,205.81,205.73,0.03]
[1738662668734,41.58022612,205.81,205.73,0.03]
[1738662669236,36.72122612,205.79,205.73,0.03]
[1738662670509,4.8592,205.8,205.73,0.03]
[1738662670907,6.0744,205.86,205.73,91.03]
[1738662671113,10.9322,205.86,205.74,0.12549]
[1738662671519,36.72122612,205.89,205.77,20.0]
[1738662671722,7.7763,205.93,205.77,20.0]
[1738662671723,36.72122612,205.91,205.77,20.0]
[1738662671922,13.66282853,205.9,205.77,111.0]
[1738662672625,13.66282853,205.88,205.77,111.0]
[1738662673628,36.72122612,205.89,205.77,115.8597]
[1738662673829,36.72122612,205.83,205.77,91.0]
[1738662674015,13.53733853,205.78,205.73,9.53]
[1738662674224,36.72122612,205.74,205.73,0.03]
[1738662674433,36.72122612,205.76,205.73,0.03]
[1738662674845,36.72122612,205.74,205.73,0.03]
[1738662675614,36.72122612,205.76,205.73,0.03]
[1738662675816,0.25098,205.78,205.73,0.03]
[1738662675817,36.72122612,205.78,205.73,0.03]
[1738662676038,36.72122612,205.74,205.73,0.03]
[1738662676424,36.72122612,205.76,205.73,0.03]
[1738662677274,50.25856465,205.78,205.73,0.03]
[1738662677643,55.11816465,205.78,205.73,0.03]
[1738662677941,36.72122612,205.76,205.73,0.03]
[1738662678148,13.66282853,205.75,205.73,0.03]
[1738662678339,18.39693853,205.78,205.73,0.03]
[1738662678340,50.38405465,205.74,205.73,0.03]
[1738662678754,0.12549,205.72,205.68,9.5]
[1738662678923,0.12549,205.72,205.67,81.53]
[1738662678924,36.72122612,205.69,205.67,0.03]
[1738662679827,13.53733853,205.7,205.67,0.03]
[1738662680031,36.72122612,205.69,205.67,0.03]
[1738662680428,13.53733853,205.7,205.67,0.03]
[1738662680646,41.58212612,205.73,205.67,0.03]
[1738662680946,36.72122612,205.76,205.67,0.03]
[1738662681161,36.72122612,205.79,205.67,0.03]
[1738662681451,41.57992612,205.82,205.67,91.03]
[1738662681962,13.66282853,205.81,205.68,4.8619]
[1738662682135,13.53733853,205.81,205.68,4.8619]
[1738662682331,13.53733853,205.81,205.68,17.0167]
[1738662682750,13.53733853,205.81,205.68,108.0167]
[1738662682955,13.53733853,205.81,205.71,20.0]
[1738662683857,13.53733853,205.81,205.72,4.8609]
[1738662684155,13.53733853,205.81,205.72,14.3609]
[1738662684332,4.8578,205.86,205.72,108.0133]
[1738662684530,20.0,205.85,205.72,108.0133]
[1738662684728,36.72122612,205.8,205.72,91.0]
[1738662685060,36.72122612,205.75,205.72,91.0]
[1738662685357,36.72122612,205.75,205.72,9.5]
[1738662685661,13.53733853,205.72,205.67,9.53]
[1738662685844,36.72122612,205.71,205.67,9.53]
[1738662686160,41.58252612,205.71,205.67,0.03]
[1738662686349,36.72122612,205.71,205.67,0.03]
[1738662688533,4.8609,205.73,205.67,0.03]
[1738662688742,50.38405465,205.72,205.67,0.03]
[1738662689130,50.38405465,205.68,205.67,0.03]
[1738662690162,57.99575465,205.68,205.67,0.03]
[1738662690464,55.12166465,205.63,205.55,9.5]
[1738662690639,50.25856465,205.63,205.55,14.3649]
[1738662690842,50.38405465,205.63,205.55,14.3649]
[1738662691357,1.0,205.67,205.55,14.3649]
[1738662691358,36.72122612,205.67,205.57,9.53]
[1738662691548,36.72122612,205.72,205.62,9.53]
[1738662691863,7.6117,205.73,205.62,9.53]
[1738662692543,13.66282853,205.72,205.62,9.53]
[1738662692748,13.66282853,205.72,205.63,4.8631]
[1738662693049,52.28122119,205.8,205.63,33.1151]
[1738662693050,4.8599,205.77,205.63,33.1151]
[1738662693262,20.0,205.75,205.63,33.1151]
[1738662693440,38.25802612,205.78,205.64,0.98024809]
[1738662693640,36.72122612,205.8,205.66,20.0]
[1738662693941,13.53733853,205.79,205.66,20.0]
[1738662694133,0.12549,205.78,205.66,20.0]
[1738662694334,0.12549,205.78,205.66,111.0]
[1738662694634,13.53733853,205.77,205.66,111.0]
[1738662694831,13.53733853,205.75,205.66,111.0]
[1738662695142,36.72122612,205.74,205.66,111.0]
[1738662695548,13.53733853,205.73,205.66,91.0]
[1738662696066,36.72122612,205.76,205.66,91.0]
[1738662696263,4.86,205.77,205.66,95.8623]
[1738662696562,41.58082612,205.78,205.66,95.8623]
[1738662697157,13.53733853,205.75,205.66,95.8623]
[1738662698160,18.39763853,205.75,205.66,95.8623]
[1738662699364,13.53733853,205.75,205.66,95.8623]
[1738662699667,41.64422612,205.76,205.66,95.8623]
[1738662700074,41.64422612,205.76,205.63,9.5]
[1738662700075,0.12549,205.68,205.63,9.5]
[1738662700244,36.72122612,205.67,205.63,9.5]
[1738662700576,0.25098,205.64,205.62,0.03]
[1738662700760,36.97220612,205.63,205.62,0.03]
[1738662700937,50.25856465,205.63,205.62,0.03]
[1738662701567,55.12166465,205.63,205.62,0.03]
[1738662701935,55.24715465,205.63,205.62,0.03]
[1738662702166,55.24715465,205.63,205.62,0.0001]
[1738662702474,91.96838077,205.63,205.62,0.0001]
[1738662702767,50.25856465,205.58,205.57,0.03]
[1738662703069,50.38405465,205.58,205.57,0.03]
[1738662703444,55.24825465,205.58,205.57,0.03]
[1738662703642,56.24825465,205.58,205.57,0.0001]
[1738662704472,55.24825465,205.58,205.57,0.0001]
[1738662704982,36.72122612,205.61,205.57,0.0001]
[1738662705266,6.4849,205.63,205.57,0.0001]
[1738662705465,41.58402612,205.64,205.57,0.0001]
[1738662705672,13.66282853,205.63,205.57,0.0001]
[1738662705868,13.66282853,205.59,205.57,0.0001]
[1738662706162,50.38405465,205.58,205.57,0.0001]
[1738662707573,55.24825465,205.58,205.57,0.0001]
[1738662708442,55.12276465,205.58,205.57,0.0001]
[1738662708843,55.12276465,205.58,205.49,14.3663]
[1738662709164,13.53733853,205.57,205.49,14.3663]
[1738662709367,18.40203853,205.57,205.49,9.5]
[1738662709568,36.72122612,205.58,205.49,9.5]
[1738662709784,4.8642,205.59,205.49,14.3663]
[1738662709967,36.72122612,205.63,205.49,14.3663]
[1738662710172,36.72122612,205.65,205.52,20.0]
[1738662710354,4.8621,205.68,205.54,20.0]
[1738662710554,6.4195,205.7,205.55,0.12549]
[1738662710871,50.38405465,205.69,205.55,0.12549]
[1738662711073,0.12549,205.64,205.54,111.0]
[1738662711376,13.53733853,205.64,205.54,91.0]
[1738662711581,4.8631,205.63,205.54,95.8651]
[1738662712946,36.72122612,205.69,205.55,0.12549]
[1738662713149,36.72122612,205.69,205.55,91.12549]
[1738662713341,4.8617,205.69,205.55,91.12549]
[1738662713643,13.66282853,205.7,205.55,91.12549]
[1738662713868,13.53733853,205.7,205.58,20.0]
[1738662714477,48.12952612,205.73,205.59,20.0]
[1738662714818,13.53733853,205.7,205.59,20.0]
[1738662714960,13.41184853,205.7,205.6,4.8638]
[1738662715153,13.41184853,205.7,205.6,95.8638]
[1738662716279,18.27324853,205.7,205.6,95.8638]
[1738662716983,36.72122612,205.71,205.6,95.8638]
[1738662717162,36.72122612,205.69,205.6,95.8638]
[1738662717554,13.53733853,205.68,205.6,95.8638]
[1738662718583,41.58292612,205.69,205.6,95.8638]
[1738662718757,36.72122612,205.69,205.6,95.8638]
[1738662719898,41.58302612,205.69,205.6,95.8638]
[1738662720581,36.72122612,205.67,205.6,95.8638]
[1738662720765,36.72122612,205.67,205.6,91.0]
[1738662721595,36.72122612,205.65,205.6,91.0]
[1738662722253,41.58392612,205.65,205.6,91.0]
[1738662722455,36.78422612,205.69,205.6,91.0]
[1738662722681,0.063,205.69,205.6,95.8636]
[1738662722878,0.063,205.69,205.61,6.4275]
[1738662723264,0.063,205.69,205.62,2.26419509]
[1738662723465,0.063,205.69,205.64,0.12549]
[1738662723769,0.063,205.69,205.62,92.2839]
[1738662723954,0.063,205.69,205.66,20.0]
[1738662724155,0.063,205.69,205.66,111.85464469]
[1738662724374,0.063,205.69,205.66,111.0]
[1738662725166,0.063,205.69,205.66,91.0]
[1738662726360,36.72122612,205.68,205.66,91.0]
[1738662726565,0.063,205.69,205.66,91.0]
[1738662730089,13.66282853,205.67,205.57,91.03]
[1738662730386,36.72122612,205.64,205.57,91.03]
[1738662730591,1.06299507,205.69,205.57,91.03]
[1738662730765,13.53733853,205.64,205.57,91.03]
[1738662731993,13.53733853,205.62,205.57,91.03]
[1738662732291,13.53733853,205.58,205.57,0.03]
[1738662732998,13.66282853,205.58,205.57,0.03]
[1738662733374,22.67983178,205.59,205.57,0.03]
[1738662733798,0.12549,205.58,205.57,0.03]
[1738662734004,13.66282853,205.58,205.57,0.03]
[1738662734182,18.52702853,205.58,205.57,0.03]
[1738662734579,55.40964381,205.58,205.57,0.03]
[1738662735474,55.40964381,205.58,205.47,9.5]
[1738662735475,36.88261528,205.5,205.47,9.5]
[1738662735675,36.88261528,205.5,205.46,9.53]
[1738662735883,36.88261528,205.48,205.46,9.53]
[1738662736093,13.41184853,205.49,205.46,9.53]
[1738662737103,36.88261528,205.5,205.46,9.53]
[1738662738008,13.53733853,205.49,205.46,0.03]
[1738662738189,18.40373853,205.49,205.46,0.03]
[1738662738911,4.8664,205.49,205.46,0.03]
[1738662739203,50.54544381,205.48,205.46,0.03]
[1738662739673,36.88261528,205.48,205.46,0.03]
[1738662739871,36.88261528,205.54,205.46,9.53]
[1738662740108,36.88261528,205.58,205.46,9.53]
[1738662740319,4.8645,205.57,205.47,4.8668]
[1738662740516,4.8642,205.59,205.47,14.3668]
[1738662740722,6.3814,205.61,205.48,6.4927]
[1738662741004,50.54544381,205.6,205.48,6.4927]
[1738662741908,55.40934381,205.6,205.49,4.8664]
[1738662742489,18.52672853,205.6,205.49,4.8664]
[1738662743516,13.53733853,205.57,205.48,6.4927]
[1738662743694,0.12549,205.51,205.47,9.5]
[1738662744009,36.88261528,205.48,205.46,0.03]
[1738662744182,13.53733853,205.47,205.46,0.03]
[1738662744987,0.12549,205.42,205.41,0.03]
[1738662745314,50.54544381,205.42,205.41,0.03]
[1738662745478,55.41344381,205.42,205.41,0.03]
[1738662747212,4.8668,205.47,205.41,0.03]
[1738662747519,13.53733853,205.43,205.41,9.53]
[1738662747716,50.54544381,205.42,205.41,9.53]
[1738662747890,50.54544381,205.42,205.41,0.03]
[1738662748215,50.41995381,205.42,205.41,0.03]
[1738662748926,0.12549,205.45,205.41,0.03]
[1738662748927,36.88261528,205.44,205.41,0.03]
[1738662749285,36.88261528,205.46,205.41,0.03]
[1738662749508,36.88261528,205.46,205.41,9.53]
[1738662749715,36.88261528,205.44,205.41,9.53]
[1738662749884,41.74971528,205.46,205.41,9.53]
[1738662750217,36.88261528,205.46,205.41,9.53]
[1738662750398,41.74981528,205.46,205.41,9.38]
[1738662750600,13.53733853,205.45,205.41,9.38]
[1738662750797,13.53733853,205.43,205.39,9.31]
[1738662751118,18.40563853,205.41,205.39,0.03]
[1738662751424,36.88261528,205.4,205.39,0.03]
[1738662752189,18.40563853,205.41,205.39,0.03]
[1738662753023,41.75111528,205.4,205.39,0.03]
[1738662753207,13.41184853,205.41,205.39,0.03]
[1738662753711,18.28024853,205.41,205.39,0.03]
[1738662754824,55.41394381,205.4,205.39,0.03]
[1738662755000,93.29655909,205.4,205.39,0.0001]
[1738662755997,20.25098,205.37,205.36,0.0001]
[1738662756326,57.13359528,205.37,205.36,0.0001]
[1738662756921,70.54544381,205.37,205.36,0.0001]
[1738662757130,75.41464381,205.37,205.36,0.0001]
[1738662757619,13.66282853,205.36,205.27,0.0001]
[1738662757918,36.88261528,205.34,205.27,9.4001]
[1738662758117,50.54544381,205.36,205.27,9.4001]
[1738662758323,13.66282853,205.33,205.27,9.4001]
[1738662758528,36.88261528,205.32,205.27,9.4001]
[1738662758700,22.75220121,205.32,205.27,9.4001]
[1738662759102,27.62210121,205.34,205.27,9.4001]
[1738662759903,27.62210121,205.34,205.27,14.2717]
[1738662760119,27.62210121,205.34,205.27,9.4001]
[1738662760701,22.75220121,205.34,205.27,14.2717]
[1738662761107,22.75220121,205.38,205.27,14.2717]
[1738662761314,27.62070121,205.4,205.27,95.7717]
[1738662761518,0.063,205.41,205.3,20.0]
[1738662761806,4.9314,205.41,205.3,110.9]
[1738662762007,0.063,205.41,205.3,110.9]
[1738662762229,0.063,205.41,205.35,20.0]
[1738662762430,0.063,205.41,205.35,29.4]
[1738662763236,0.063,205.41,205.36,4.8694]
[1738662765246,0.063,205.41,205.35,29.4]
[1738662765408,0.063,205.41,205.35,9.4]
[1738662766510,0.063,205.41,205.35,34.2696]
[1738662767130,0.063,205.41,205.35,115.7696]
[1738662769011,0.063,205.41,205.35,127.9439]
[1738662770253,0.063,205.41,205.35,115.7696]
[1738662770540,0.063,205.41,205.35,90.9]
[1738662770711,36.90838163,205.36,205.35,9.4]
[1738662770913,36.90838163,205.36,205.27,97.2109]
[1738662771326,36.90838163,205.34,205.27,102.0825]
[1738662773755,36.90838163,205.34,205.27,97.2109]
[1738662773961,41.77838163,205.34,205.27,90.9001]
[1738662774763,36.90838163,205.36,205.27,95.7717]
[1738662774928,41.77748163,205.38,205.27,95.7717]
[1738662775665,41.77708163,205.4,205.28,0.12549]
[1738662775836,36.90838163,205.38,205.28,4.8713]
[1738662776156,36.90838163,205.34,205.28,9.4]
[1738662776534,13.53733853,205.31,205.27,9.4001]
[1738662776733,36.90838163,205.28,205.27,0.0001]
[1738662777443,50.57121016,205.28,205.27,0.0001]
[1738662778271,55.44251016,205.28,205.27,0.0001]
[1738662779258,41.77968163,205.28,205.27,0.0001]
[1738662779742,55.44251016,205.28,205.27,0.0001]
[1738662784740,41.30458797,205.28,205.27,0.0001]
[1738662785542,42.30458797,205.28,205.27,0.0001]
[1738662785740,36.43328797,205.26,205.25,0.0001]
[1738662786039,33.66282853,205.23,205.22,0.063]
[1738662786246,56.43328797,205.23,205.22,0.063]
[1738662786648,61.30578797,205.23,205.22,0.063]
[1738662786862,61.30578797,205.23,205.15,0.03]
[1738662786863,22.77045944,205.17,205.15,0.03]
[1738662788253,13.66282853,205.16,205.15,0.03]
[1738662788885,13.53733853,205.16,205.15,0.03]
[1738662789988,13.66282853,205.16,205.15,0.03]
[1738662790162,18.53702853,205.16,205.15,0.03]
[1738662792983,22.77045944,205.23,205.15,0.03]
[1738662793187,20.0,205.2,205.15,9.43]
[1738662793361,36.43328797,205.19,205.15,9.43]
[1738662793684,22.77045944,205.17,205.15,0.03]
[1738662794374,22.77045944,205.19,205.15,0.03]
[1738662794682,4.8727,205.23,205.15,0.03]
[1738662794683,22.77045944,205.21,205.15,0.03]
[1738662794992,22.77045944,205.16,205.15,0.03]
[1738662796274,22.77045944,205.2,205.15,0.03]
[1738662796890,27.64345944,205.22,205.15,9.43]
[1738662797075,22.77045944,205.2,205.15,9.43]
[1738662797789,22.77045944,205.18,205.15,9.43]
[1738662798786,22.77045944,205.16,205.15,0.03]
[1738662798965,27.64465944,205.16,205.15,0.03]
[1738662799389,41.18199797,205.16,205.15,0.03]
[1738662800290,22.77045944,205.16,205.15,0.03]
[1738662800674,4.874,205.17,205.15,0.03]
[1738662801074,22.77045944,205.16,205.15,0.03]
[1738662802680,22.89594944,205.2,205.15,0.03]
[1738662802864,27.76924944,205.2,205.15,0.03]
[1738662803063,22.77045944,205.18,205.15,0.03]
[1738662804089,22.77045944,205.22,205.15,9.43]
[1738662804280,22.77045944,205.24,205.15,90.93]
[1738662805280,27.64275944,205.24,205.16,4.8742]
[1738662805589,22.77045944,205.2,205.15,90.93]
[1738662805889,0.12549,205.21,205.15,90.93]
[1738662805890,22.77045944,205.18,205.15,90.93]
[1738662806475,0.12549,205.22,205.15,90.93]
[1738662806476,22.89594944,205.16,205.15,0.03]
[1738662806693,36.43328797,205.16,205.15,0.03]
[1738662807366,22.77045944,205.2,205.15,0.03]
[1738662807367,27.64365944,205.2,205.15,0.03]
[1738662807966,0.12549,205.19,205.15,0.03]
[1738662808468,4.99899,205.19,205.15,0.03]
[1738662808674,22.77045944,205.2,205.15,0.03]
[1738662808878,4.8732,205.21,205.15,0.03]
[1738662809093,4.8732,205.21,205.15,9.43]
[1738662809292,22.77045944,205.22,205.15,9.43]
[1738662809488,27.64325944,205.22,205.15,9.43]
[1738662809910,22.77045944,205.22,205.15,9.43]
[1738662810115,0.063,205.24,205.15,9.43]
[1738662810406,0.063,205.24,205.15,90.93]
[1738662810577,0.063,205.24,205.16,4.8742]
[1738662812274,0.063,205.24,205.16,17.0598]
[1738662812479,0.063,205.24,205.17,6.4026]
[1738662812680,0.063,205.24,205.18,17.78891087]
[1738662812974,0.063,205.24,205.21,20.0]
[1738662813175,0.063,205.24,205.22,0.12549]
[1738662813412,0.063,205.36,205.25,20.0]
[1738662813589,0.063,205.36,205.26,0.73055714]
[1738662813779,0.063,205.36,205.27,6.028]
[1738662813982,0.063,205.36,205.26,0.73055714]
[1738662813983,22.77045944,205.31,205.26,90.9]
[1738662814414,22.77045944,205.33,205.26,90.9]
[1738662814985,0.063,205.36,205.26,97.5024767]
[1738662815381,0.063,205.36,205.26,95.7718]
[1738662815631,22.89594944,205.32,205.26,90.9]
[1738662816111,22.77045944,205.3,205.26,90.9]
[1738662816319,0.12549,205.31,205.26,90.9]
[1738662816882,22.77045944,205.3,205.26,90.9]
[1738662817198,4.99619,205.31,205.26,90.9]
[1738662817389,22.77045944,205.32,205.26,90.9]
[1738662817585,22.83345944,205.36,205.26,90.9]
[1738662817817,27.70295944,205.36,205.26,95.7717]
[1738662818420,22.77045944,205.32,205.26,90.9]
[1738662818588,4.8711,205.29,205.26,90.9]
[1738662819011,22.89594944,205.28,205.21,9.4]
[1738662819215,22.77045944,205.26,205.21,9.4]
[1738662819515,36.43328797,205.28,205.21,9.4]
[1738662820304,22.77045944,205.26,205.21,9.4]
[1738662820619,22.77045944,205.24,205.21,9.4]
[1738662820920,22.77045944,205.26,205.21,9.4]
[1738662821282,22.77045944,205.24,205.21,9.4]
[1738662821687,22.77045944,205.26,205.21,9.4]
[1738662821885,47.64175944,205.28,205.21,9.4]
[1738662822113,27.64135944,205.3,205.21,90.9]
[1738662822515,0.12549,205.24,205.18,9.4]
[1738662822694,22.77045944,205.25,205.18,9.4]
[1738662823090,22.77045944,205.25,205.18,14.2737]
[1738662823289,4.872,205.26,205.18,14.2737]